[Event "Amsterdam Chess Open 2024"]
[Site "Amsterdam"]
[Date "2024.11.03"]
[Round "5.21"]
[White "Shakya, Amrit"]
[Black "Erisen, Sinan"]
[Result "1-0"]
[ECO "B06"]
[WhiteElo "1756"]
[BlackElo "1745"]
[Annotator "NA RC"]
[PlyCount "85"]
[EventDate "2024.10.31"]
[EventType "swiss"]
[EventCountry "NED"]
[SourceTitle "playchess.com"]
[Source "ChessBase"]
[SourceQuality "1"]
[TimeControl "5400+30"]

1. e4 {[%emt 0:07:28]} g6 {[%emt 0:00:33]} 2. d4 {[%emt 0:00:05]} Bg7 {[%emt 0:00:04]} 3. Be3 {[%emt 0:00:23]} d6 {[%emt 0:00:09]} 4. Bc4 {[%emt 0:04:02]} a6 {[%emt 0:01:18]} 5. Ne2 {[%emt 0:04:26]} b5 {[%emt 0:00:46]} 6. Bb3 {[%emt 0:00:31]} c5 {[%emt 0:00:43]} 7. dxc5 {[%emt 0:04:19]} Bxb2 {[%emt 0:01:44]} 8. Bd4 {[%emt 0:00:09]} Bxa1 {[%emt 0:04:51]} 9. Bxa1 {[%emt 0:00:32]} Nf6 {[%emt 0:00:22]} 10. Bxf6 {[%emt 0:13:05]} exf6 {[%emt 0:00:08]} 11. Bxf7+ {[%emt 0:00:16]} Ke7 {[%emt 0:09:20]} 12. Bd5 {[%emt 0:06:26]} Ra7 {[%emt 0:01:11]} 13. c6 {[%emt 0:06:49]} Qb6 {[%emt 0:07:22]} 14. Qd2 {[%emt 0:10:33]} Nxc6 {[%emt 0:03:54]} 15. Qh6 {[%emt 0:02:57]} Kd8 {[%emt 0:00:15]} 16. Nf4 {[%emt 0:00:45]} Ne5 {[%emt 0:02:19]} 17. O-O {[%emt 0:00:32]} Ng4 {[%emt 0:03:12]} 18. Qh4 {[%emt 0:10:57]} g5 {[%emt 0:01:44]} 19. Qg3 {[%emt 0:00:01]} gxf4 {[%emt 0:00:13]} 20. Qxf4 {[%emt 0:00:06]} h5 {[%emt 0:16:55]} 21. Nc3 {[%emt 0:02:47]} Qc7 {[%emt 0:05:07]} 22. Ne2 {[%emt 0:00:59]} Qe7 {[%emt 0:04:06]} 23. Nd4 {[%emt 0:03:42]} Bd7 {[%emt 0:00:36]} 24. Qd2 {[%emt 0:00:03]} Ne5 {[%emt 0:07:42]} 25. Qa5+ {[%emt 0:00:27]} Ke8 {[%emt 0:00:27]} 26. Qb6 {[%emt 0:00:33]} Bc8 {[%emt 0:00:44]} 27. Nf5 {[%emt 0:06:00]} Qc7 {[%emt 0:01:58]} 28. Qd4 {[%emt 0:06:45]} Bxf5 {[%emt 0:00:28]} 29. exf5 {[%emt 0:00:12]} Qc5 {[%emt 0:00:38]} 30. Qe4 {[%emt 0:00:06]} Re7 {[%emt 0:01:49]} 31. Bb3 {[%emt 0:00:51]} Qa7 {[%emt 0:04:47]} 32. Kh1 {[%emt 0:00:40]} Ng4 {[%emt 0:01:59]} 33. Be6 {[%emt 0:01:52]} Kf8 {[%emt 0:01:25]} 34. Qf3 {[%emt 0:00:52]} Ne5 {[%emt 0:05:04]} 35. Qg3 {[%emt 0:00:29]} Rg7 {[%emt 0:00:26]} 36. Qh4 {[%emt 0:01:05]} Ke7 {[%emt 0:02:38]} 37. h3 {[%emt 0:00:33]} Qb7 {[%emt 0:00:23]} 38. f3 {[%emt 0:00:36]} Qc6 {[%emt 0:02:02]} 39. Qd4 {[%emt 0:00:24]} Kd8 {[%emt 0:04:40]} 40. Rd1 {[%emt 0:02:07]} Nxf3 {[%emt 0:00:20]} 41. Qxf6+ {[%emt 0:00:13]} Ke8 {[%emt 0:04:09]} 42. Qxg7 {[%emt 0:00:49]} Rf8 {[%emt 0:00:31]} 43. f6 {[%emt 0:00:54]} 1-0

[Event "Amsterdam Chess Open 2024"]
[Site "Amsterdam"]
[Date "2024.11.03"]
[Round "5.22"]
[White "Van der Velden, Rens"]
[Black "Schebek, Paul"]
[Result "1/2-1/2"]
[ECO "B12"]
[WhiteElo "1798"]
[BlackElo "1696"]
[Annotator "NA RC"]
[PlyCount "139"]
[EventDate "2024.10.31"]
[EventType "swiss"]
[EventCountry "NED"]
[SourceTitle "playchess.com"]
[Source "ChessBase"]
[SourceQuality "1"]
[TimeControl "5400+30"]

1. e4 {[%emt 0:00:08]} c6 {[%emt 0:00:45]} 2. d4 {[%emt 0:00:08]} d5 {[%emt 0:00:06]} 3. f3 {[%emt 0:00:04]} e6 {[%emt 0:03:50]} 4. Nc3 {[%emt 0:00:17]} c5 {[%emt 0:05:37]} 5. Bf4 {[%emt 0:12:12]} a6 {[%emt 0:02:13]} 6. exd5 {[%emt 0:09:34]} cxd4 {[%emt 0:12:20]} 7. Qxd4 {[%emt 0:01:59]} Nf6 {[%emt 0:00:14]} 8. O-O-O {[%emt 0:08:23]} exd5 {[%emt 0:02:11]} 9. Nxd5 {[%emt 0:12:04]} Nxd5 {[%emt 0:00:10]} 10. Qxd5 {[%emt 0:00:24]} Qxd5 {[%emt 0:00:08]} 11. Rxd5 {[%emt 0:00:06]} Be6 {[%emt 0:00:25]} 12. Re5 {[%emt 0:04:15]} Nc6 {[%emt 0:03:25]} 13. Re1 {[%emt 0:03:05]} O-O-O {[%emt 0:05:37]} 14. a3 {[%emt 0:06:53]} Bd6 {[%emt 0:04:18]} 15. Bxd6 {[%emt 0:01:12]} Rxd6 {[%emt 0:00:58]} 16. Rd1 {[%emt 0:02:42]} Rhd8 {[%emt 0:00:31]} 17. Rxd6 {[%emt 0:00:25]} Rxd6 {[%emt 0:00:10]} 18. Ne2 {[%emt 0:03:33]} f6 {[%emt 0:07:25]} 19. Nc3 {[%emt 0:01:15]} Kc7 {[%emt 0:03:31]} 20. Bd3 {[%emt 0:02:23]} h6 {[%emt 0:05:41]} 21. Rd1 {[%emt 0:01:55]} Ne5 {[%emt 0:02:22]} 22. Be4 {[%emt 0:00:59]} Rxd1+ {[%emt 0:00:59]} 23. Kxd1 {[%emt 0:00:12]} Nc4 {[%emt 0:01:25]} 24. Kc1 {[%emt 0:03:53]} f5 {[%emt 0:07:25]} 25. Bd5 {[%emt 0:02:17]} Bxd5 {[%emt 0:00:53]} 26. Nxd5+ {[%emt 0:00:09]} Kd6 {[%emt 0:00:21]} 27. Nf4 {[%emt 0:01:12]} g5 {[%emt 0:01:35]} 28. Nd3 {[%emt 0:00:36]} Ne3 {[%emt 0:00:30]} 29. Ne1 {[%emt 0:00:15]} g4 {[%emt 0:06:11]} 30. fxg4 {[%emt 0:00:39]} fxg4 {[%emt 0:00:15]} 31. Kd2 {[%emt 0:03:19]} Nc4+ {[%emt 0:03:45]} 32. Kc3 {[%emt 0:00:30]} Ne3 {[%emt 0:00:09]} 33. Kd3 {[%emt 0:02:15]} Nf1 {[%emt 0:06:44]} 34. Ke2 {[%emt 0:01:26]} Nxh2 {[%emt 0:00:51]} 35. g3 {[%emt 0:00:14]} Kd5 {[%emt 0:00:56]} 36. Kf2 {[%emt 0:00:32]} Ke4 {[%emt 0:00:12]} 37. Kg2 {[%emt 0:00:12]} Nf3 {[%emt 0:00:15]} 38. Nxf3 {[%emt 0:00:09]} gxf3+ {[%emt 0:00:13]} 39. Kf2 {[%emt 0:00:04]} b5 {[%emt 0:01:56]} 40. c3 {[%emt 0:17:14]} Kd3 {[%emt 0:04:41]} 41. Kxf3 {[%emt 0:00:30]} Kc2 {[%emt 0:00:08]} 42. Kg4 {[%emt 0:01:20]} Kxb2 {[%emt 0:00:07]} 43. Kh5 {[%emt 0:00:11]} Kxc3 {[%emt 0:00:08]} 44. Kxh6 {[%emt 0:00:08]} Kb3 {[%emt 0:00:23]} 45. g4 {[%emt 0:00:08]} Kxa3 {[%emt 0:00:11]} 46. g5 {[%emt 0:00:03]} b4 {[%emt 0:00:17]} 47. g6 {[%emt 0:00:12]} b3 {[%emt 0:00:07]} 48. g7 {[%emt 0:00:07]} b2 {[%emt 0:00:08]} 49. g8=Q {[%emt 0:00:04]} b1=Q {[%emt 0:00:14]} 50. Qf8+ {[%emt 0:00:46]} Qb4 {[%emt 0:01:10]} 51. Qf3+ {[%emt 0:00:20]} Ka4 {[%emt 0:02:08]} 52. Qc6+ {[%emt 0:01:21]} Ka5 {[%emt 0:00:31]} 53. Qd5+ {[%emt 0:00:42]} Qb5 {[%emt 0:00:30]} 54. Qd2+ {[%emt 0:00:41]} Kb6 {[%emt 0:00:30]} 55. Qd8+ {[%emt 0:00:53]} Ka7 {[%emt 0:00:18]} 56. Qe7+ {[%emt 0:00:51]} Qb7 {[%emt 0:00:07]} 57. Qa3 {[%emt 0:00:11]} Qb6+ {[%emt 0:00:18]} 58. Kg5 {[%emt 0:00:25]} a5 {[%emt 0:00:13]} 59. Qe7+ {[%emt 0:01:26]} Ka6 {[%emt 0:00:15]} 60. Qe1 {[%emt 0:00:35]} a4 {[%emt 0:00:19]} 61. Kf4 {[%emt 0:00:21]} Qd4+ {[%emt 0:00:54]} 62. Kf3 {[%emt 0:00:27]} Qf6+ {[%emt 0:00:48]} 63. Kg4 {[%emt 0:00:30]} a3 {[%emt 0:01:00]} 64. Qe2+ {[%emt 0:00:24]} Ka5 {[%emt 0:00:49]} 65. Qd2+ {[%emt 0:00:34]} Ka4 {[%emt 0:01:05]} 66. Qd7+ {[%emt 0:00:14]} Kb3 {[%emt 0:00:25]} 67. Qb5+ {[%emt 0:00:19]} Kc3 {[%emt 0:03:38]} 68. Qa5+ {[%emt 0:00:11]} Kb2 {[%emt 0:00:17]} 69. Qb4+ {[%emt 0:00:33]} Ka2 {[%emt 0:00:52]} 70. Qc4+ {[%emt 0:00:06]} 1/2-1/2

[Event "Amsterdam Chess Open 2024"]
[Site "Amsterdam"]
[Date "2024.11.03"]
[Round "5.23"]
[White "Alexandrov, Matvey"]
[Black "Lars Nobbe"]
[Result "1-0"]
[ECO "B50"]
[WhiteElo "1835"]
[BlackElo "1772"]
[Annotator "NA RC"]
[PlyCount "47"]
[EventDate "2024.10.31"]
[EventType "swiss"]
[EventCountry "NED"]
[SourceTitle "playchess.com"]
[Source "ChessBase"]
[SourceQuality "1"]
[TimeControl "5400+30"]

1. e4 {[%emt 0:00:03]} c5 {[%emt 0:00:05]} 2. Nf3 {[%emt 0:00:09]} e6 {[%emt 0:00:08]} 3. g3 {[%emt 0:00:30]} Nf6 {[%emt 0:07:15]} 4. Nc3 {[%emt 0:01:18]} d6 {[%emt 0:01:31]} 5. Bg2 {[%emt 0:00:53]} Nc6 {[%emt 0:05:27]} 6. O-O {[%emt 0:01:53]} Be7 {[%emt 0:00:57]} 7. d3 {[%emt 0:00:15]} a6 {[%emt 0:04:10]} 8. a4 {[%emt 0:00:06]} Qc7 {[%emt 0:02:52]} 9. Nd2 {[%emt 0:03:17]} b6 {[%emt 0:06:26]} 10. Nc4 {[%emt 0:00:56]} Bb7 {[%emt 0:02:15]} 11. f4 {[%emt 0:02:31]} Rb8 {[%emt 0:08:38]} 12. f5 {[%emt 0:03:33]} exf5 {[%emt 0:02:16]} 13. Rxf5 {[%emt 0:00:53]} Nd4 {[%emt 0:05:31]} 14. Rf1 {[%emt 0:02:40]} O-O {[%emt 0:05:18]} 15. Be3 {[%emt 0:08:53]} Nc6 {[%emt 0:00:42]} 16. Qd2 {[%emt 0:09:47]} Nb4 {[%emt 0:01:38]} 17. Rae1 {[%emt 0:02:16]} d5 {[%emt 0:04:22]} 18. exd5 {[%emt 0:00:32]} Nbxd5 {[%emt 0:00:41]} 19. Nxd5 {[%emt 0:04:51]} Nxd5 {[%emt 0:00:27]} 20. Bxd5 {[%emt 0:00:12]} Bxd5 {[%emt 0:02:18]} 21. Bf4 {[%emt 0:00:06]} Qd7 {[%emt 0:11:09]} 22. Bxb8 {[%emt 0:13:08]} Rxb8 {[%emt 0:00:39]} 23. Qf4 {[%emt 0:00:35]} Rf8 {[%emt 0:03:03]} 24. Nxb6 {[%emt 0:00:58]} 1-0

[Event "Amsterdam Chess Open 2024"]
[Site "Amsterdam"]
[Date "2024.11.03"]
[Round "5.24"]
[White "Lee, Jungbin"]
[Black "Giannoulas, Christos"]
[Result "0-1"]
[ECO "D03"]
[WhiteElo "1835"]
[BlackElo "1757"]
[Annotator "NA RC"]
[PlyCount "60"]
[EventDate "2024.10.31"]
[EventType "swiss"]
[EventCountry "NED"]
[SourceTitle "playchess.com"]
[Source "ChessBase"]
[SourceQuality "1"]
[TimeControl "5400+30"]

1. d4 {[%emt 0:07:25]} Nf6 {[%emt 0:00:10]} 2. Bg5 {[%emt 0:05:35]} d5 {[%emt 0:00:07]} 3. e3 {[%emt 0:00:03]} Nbd7 {[%emt 0:01:08]} 4. Nf3 {[%emt 0:01:47]} h6 {[%emt 0:01:35]} 5. Bh4 {[%emt 0:01:39]} c5 {[%emt 0:02:52]} 6. dxc5 {[%emt 0:02:03]} Qa5+ {[%emt 0:00:29]} 7. Nbd2 {[%emt 0:01:57]} Qxc5 {[%emt 0:01:03]} 8. Be2 {[%emt 0:01:14]} g5 {[%emt 0:07:19]} 9. Bg3 {[%emt 0:03:13]} e6 {[%emt 0:05:26]} 10. O-O {[%emt 0:04:25]} Nh5 {[%emt 0:04:55]} 11. Be5 {[%emt 0:04:58]} Nxe5 {[%emt 0:00:25]} 12. Nxe5 {[%emt 0:01:18]} Nf6 {[%emt 0:00:12]} 13. c4 {[%emt 0:05:59]} Bd6 {[%emt 0:04:01]} 14. Qa4+ {[%emt 0:06:39]} b5 {[%emt 0:03:02]} 15. cxb5 {[%emt 0:03:16]} Bxe5 {[%emt 0:00:07]} 16. Rac1 {[%emt 0:04:13]} Qb6 {[%emt 0:02:51]} 17. Rc6 {[%emt 0:00:46]} Qb8 {[%emt 0:00:08]} 18. f4 {[%emt 0:04:56]} gxf4 {[%emt 0:02:45]} 19. exf4 {[%emt 0:01:11]} Bc7 {[%emt 0:07:11]} 20. f5 {[%emt 0:14:47]} Bxh2+ {[%emt 0:09:00]} 21. Kh1 {[%emt 0:00:22]} Ke7 {[%emt 0:02:36]} 22. fxe6 {[%emt 0:09:48]} Bxe6 {[%emt 0:03:35]} 23. Qb4+ {[%emt 0:02:45]} Bd6 {[%emt 0:00:17]} 24. Qh4 {[%emt 0:00:10]} Be5 {[%emt 0:02:10]} 25. Qb4+ {[%emt 0:00:11]} Ke8 {[%emt 0:05:35]} 26. b6 {[%emt 0:02:38]} a5 {[%emt 0:02:33]} 27. Qb3 {[%emt 0:06:07]} Qd8 {[%emt 0:01:32]} 28. Nf3 {[%emt 0:01:53]} Ng4 {[%emt 0:01:52]} 29. Nxe5 {[%emt 0:01:37]} Qh4+ {[%emt 0:00:13]} 30. Qh3 {[%emt 0:00:09]} Nf2+ {[%emt 0:00:30]} 0-1

[Event "Amsterdam Chess Open 2024"]
[Site "Amsterdam"]
[Date "2024.11.03"]
[Round "5.25"]
[White "Thomas Huften"]
[Black "Aron Schot"]
[Result "1/2-1/2"]
[ECO "D23"]
[WhiteElo "1781"]
[BlackElo "1683"]
[Annotator "NA RC"]
[PlyCount "130"]
[EventDate "2024.10.31"]
[EventType "swiss"]
[EventCountry "NED"]
[SourceTitle "playchess.com"]
[Source "ChessBase"]
[SourceQuality "1"]
[TimeControl "5400+30"]

1. Nf3 {[%emt 0:00:03]} d5 {[%emt 0:00:27]} 2. d4 {[%emt 0:00:12]} Bf5 {[%emt 0:01:18]} 3. c4 {[%emt 0:00:28]} e6 {[%emt 0:02:21]} 4. g3 {[%emt 0:01:56]} Nf6 {[%emt 0:04:58]} 5. Bg2 {[%emt 0:01:15]} dxc4 {[%emt 0:01:16]} 6. Qa4+ {[%emt 0:01:01]} c6 {[%emt 0:03:45]} 7. Qxc4 {[%emt 0:01:14]} Be7 {[%emt 0:02:46]} 8. O-O {[%emt 0:01:01]} O-O {[%emt 0:00:04]} 9. Qb3 {[%emt 0:09:39]} Qb6 {[%emt 0:10:08]} 10. Qxb6 {[%emt 0:06:42]} axb6 {[%emt 0:00:59]} 11. Nc3 {[%emt 0:00:29]} h6 {[%emt 0:01:56]} 12. Bf4 {[%emt 0:09:53]} Nbd7 {[%emt 0:03:54]} 13. Rfe1 {[%emt 0:05:21]} Nd5 {[%emt 0:13:14]} 14. e4 {[%emt 0:16:21]} Nxf4 {[%emt 0:03:52]} 15. exf5 {[%emt 0:00:00]} Nxg2 {[%emt 0:00:47]} 16. Kxg2 {[%emt 0:00:12]} Rfe8 {[%emt 0:10:04]} 17. fxe6 {[%emt 0:02:30]} fxe6 {[%emt 0:00:37]} 18. Rxe6 {[%emt 0:01:27]} Bf6 {[%emt 0:05:50]} 19. Rae1 {[%emt 0:06:34]} Rxe6 {[%emt 0:06:26]} 20. Rxe6 {[%emt 0:00:09]} b5 {[%emt 0:01:36]} 21. a3 {[%emt 0:03:17]} Kf7 {[%emt 0:04:13]} 22. Re2 {[%emt 0:00:57]} Rd8 {[%emt 0:00:23]} 23. Ne4 {[%emt 0:09:06]} Nb6 {[%emt 0:04:13]} 24. Nxf6 {[%emt 0:05:08]} Kxf6 {[%emt 0:00:08]} 25. b3 {[%emt 0:02:30]} Nd5 {[%emt 0:01:19]} 26. Rd2 {[%emt 0:03:16]} Kf5 {[%emt 0:03:36]} 27. Re2 {[%emt 0:03:24]} Rd7 {[%emt 0:01:40]} 28. Ne5 {[%emt 0:02:30]} Rd8 {[%emt 0:03:50]} 29. Rd2 {[%emt 0:03:28]} Ra8 {[%emt 0:00:54]} 30. Ra2 {[%emt 0:00:25]} Ke4 {[%emt 0:00:27]} 31. Nf3 {[%emt 0:00:43]} Kd3 {[%emt 0:01:07]} 32. a4 {[%emt 0:00:49]} Kc3 {[%emt 0:02:00]} 33. a5 {[%emt 0:02:01]} Kxb3 {[%emt 0:00:18]} 34. Ra1 {[%emt 0:00:07]} Kb4 {[%emt 0:00:15]} 35. Kf1 {[%emt 0:00:27]} Rxa5 {[%emt 0:00:16]} 36. Rxa5 {[%emt 0:00:50]} Kxa5 {[%emt 0:00:02]} 37. Ke1 {[%emt 0:00:04]} b4 {[%emt 0:01:16]} 38. Kd1 {[%emt 0:00:47]} Kb5 {[%emt 0:01:04]} 39. Nd2 {[%emt 0:00:19]} b6 {[%emt 0:00:23]} 40. Kc2 {[%emt 0:00:15]} c5 {[%emt 0:01:58]} 41. Kb3 {[%emt 0:00:57]} cxd4 {[%emt 0:01:15]} 42. Nf3 {[%emt 0:00:23]} d3 {[%emt 0:00:59]} 43. Ne5 {[%emt 0:00:32]} d2 {[%emt 0:00:59]} 44. Kc2 {[%emt 0:00:04]} Ka4 {[%emt 0:00:58]} 45. Kxd2 {[%emt 0:00:13]} Ka3 {[%emt 0:01:12]} 46. Kc2 {[%emt 0:01:02]} Ka2 {[%emt 0:00:18]} 47. Nd3 {[%emt 0:01:46]} b3+ {[%emt 0:01:17]} 48. Kc1 {[%emt 0:00:05]} Ka1 {[%emt 0:00:51]} 49. Nb2 {[%emt 0:00:18]} Nf6 {[%emt 0:00:47]} 50. f3 {[%emt 0:00:15]} g5 {[%emt 0:00:34]} 51. h3 {[%emt 0:00:08]} Nd5 {[%emt 0:00:22]} 52. h4 {[%emt 0:00:08]} gxh4 {[%emt 0:00:05]} 53. gxh4 {[%emt 0:00:01]} Nf4 {[%emt 0:00:42]} 54. Nc4 {[%emt 0:00:24]} b5 {[%emt 0:00:38]} 55. Nb2 {[%emt 0:00:03]} h5 {[%emt 0:00:08]} 56. Nd1 {[%emt 0:00:09]} Nd3+ {[%emt 0:00:27]} 57. Kd2 {[%emt 0:00:10]} Ne5 {[%emt 0:01:05]} 58. f4 {[%emt 0:00:12]} Nc4+ {[%emt 0:00:16]} 59. Kc3 {[%emt 0:00:13]} b2 {[%emt 0:00:29]} 60. Nxb2 {[%emt 0:00:04]} Nxb2 {[%emt 0:00:08]} 61. f5 {[%emt 0:00:01]} Nc4 {[%emt 0:00:31]} 62. f6 {[%emt 0:00:11]} Nd6 {[%emt 0:00:28]} 63. Kb4 {[%emt 0:00:08]} Kb2 {[%emt 0:00:12]} 64. Kc5 {[%emt 0:00:17]} Ne4+ {[%emt 0:01:17]} 65. Kxb5 {[%emt 0:00:05]} Nxf6 {[%emt 0:00:30]} 1/2-1/2

[Event "Amsterdam Chess Open 2024"]
[Site "Amsterdam"]
[Date "2024.11.03"]
[Round "5.26"]
[White "Sonmez, Ozkal"]
[Black "Sam Ritchie"]
[Result "0-1"]
[ECO "D11"]
[WhiteElo "1637"]
[BlackElo "1600"]
[Annotator "NA RC"]
[PlyCount "76"]
[EventDate "2024.10.31"]
[EventType "swiss"]
[EventCountry "NED"]
[SourceTitle "playchess.com"]
[Source "ChessBase"]
[SourceQuality "1"]
[TimeControl "5400+30"]

1. d4 {[%emt 0:00:03]} d5 {[%emt 0:00:13]} 2. c4 {[%emt 0:00:06]} c6 {[%emt 0:00:10]} 3. Nf3 {[%emt 0:00:06]} dxc4 {[%emt 0:00:17]} 4. e3 {[%emt 0:01:43]} b5 {[%emt 0:01:01]} 5. a4 {[%emt 0:00:07]} Bf5 {[%emt 0:02:10]} 6. b3 {[%emt 0:00:47]} cxb3 {[%emt 0:06:08]} 7. axb5 {[%emt 0:00:16]} Bc2 {[%emt 0:00:59]} 8. Qd2 {[%emt 0:02:40]} Nf6 {[%emt 0:02:14]} 9. Nc3 {[%emt 0:02:56]} e6 {[%emt 0:03:03]} 10. Ba3 {[%emt 0:08:23]} Bxa3 {[%emt 0:04:01]} 11. Rxa3 {[%emt 0:00:25]} Qd6 {[%emt 0:03:57]} 12. Ra4 {[%emt 0:00:49]} O-O {[%emt 0:01:56]} 13. Be2 {[%emt 0:00:31]} cxb5 {[%emt 0:04:30]} 14. Bxb5 {[%emt 0:00:08]} Nbd7 {[%emt 0:12:42]} 15. O-O {[%emt 0:01:52]} Nb6 {[%emt 0:01:45]} 16. Ra6 {[%emt 0:17:00]} Qb4 {[%emt 0:09:45]} 17. Bc6 {[%emt 0:11:46]} Rac8 {[%emt 0:05:26]} 18. Ne5 {[%emt 0:00:46]} Nfd5 {[%emt 0:12:24]} 19. Bxd5 {[%emt 0:05:40]} Nxd5 {[%emt 0:02:32]} 20. Nb1 {[%emt 0:00:11]} Bxb1 {[%emt 0:03:30]} 21. Qxb4 {[%emt 0:00:02]} Nxb4 {[%emt 0:00:06]} 22. Ra4 {[%emt 0:00:50]} Na2 {[%emt 0:02:36]} 23. Nd7 {[%emt 0:02:43]} Rfd8 {[%emt 0:07:06]} 24. Nc5 {[%emt 0:00:11]} Nc3 {[%emt 0:04:56]} 25. Rc4 {[%emt 0:03:50]} Ne2+ {[%emt 0:04:56]} 26. Kh1 {[%emt 0:00:01]} Ba2 {[%emt 0:00:31]} 27. Ra4 {[%emt 0:00:58]} Nc3 {[%emt 0:00:43]} 28. Ra3 {[%emt 0:01:05]} Rb8 {[%emt 0:01:02]} 29. Nd3 {[%emt 0:00:06]} Nd5 {[%emt 0:00:35]} 30. Nb2 {[%emt 0:00:40]} Rdc8 {[%emt 0:01:00]} 31. e4 {[%emt 0:00:41]} Nf6 {[%emt 0:00:44]} 32. f3 {[%emt 0:02:16]} Rb7 {[%emt 0:00:13]} 33. Kg1 {[%emt 0:01:56]} h6 {[%emt 0:00:24]} 34. Rd1 {[%emt 0:02:29]} Rbc7 {[%emt 0:00:08]} 35. Nd3 {[%emt 0:00:16]} g5 {[%emt 0:01:38]} 36. Nc5 {[%emt 0:00:15]} Nh5 {[%emt 0:00:46]} 37. g3 {[%emt 0:00:18]} e5 {[%emt 0:00:07]} 38. Na6 {[%emt 0:00:52]} Rc1 {[%emt 0:00:03]} 0-1

[Event "Amsterdam Chess Open 2024"]
[Site "Amsterdam"]
[Date "2024.11.03"]
[Round "5.27"]
[White "Leonard Schneider"]
[Black "Agustin Luis Martin Reyes"]
[Result "1/2-1/2"]
[ECO "B21"]
[WhiteElo "1200"]
[BlackElo "1650"]
[Annotator "NA RC"]
[PlyCount "56"]
[EventDate "2024.10.31"]
[EventType "swiss"]
[EventCountry "NED"]
[SourceTitle "playchess.com"]
[Source "ChessBase"]
[SourceQuality "1"]
[TimeControl "5400+30"]

1. e4 {[%emt 0:00:02]} c5 {[%emt 0:00:09]} 2. d4 {[%emt 0:00:06]} cxd4 {[%emt 0:00:08]} 3. c3 {[%emt 0:00:05]} dxc3 {[%emt 0:00:33]} 4. Nxc3 {[%emt 0:00:07]} a6 {[%emt 0:01:07]} 5. Bc4 {[%emt 0:00:17]} Nc6 {[%emt 0:00:20]} 6. Nf3 {[%emt 0:00:11]} e6 {[%emt 0:00:43]} 7. O-O {[%emt 0:00:10]} Be7 {[%emt 0:02:38]} 8. Qe2 {[%emt 0:09:18]} d6 {[%emt 0:01:00]} 9. Rd1 {[%emt 0:00:26]} Qc7 {[%emt 0:00:30]} 10. Bf4 {[%emt 0:00:49]} Nf6 {[%emt 0:02:48]} 11. Rac1 {[%emt 0:02:38]} O-O {[%emt 0:02:45]} 12. Bb3 {[%emt 0:01:52]} Qb8 {[%emt 0:10:04]} 13. e5 {[%emt 0:02:36]} dxe5 {[%emt 0:00:46]} 14. Nxe5 {[%emt 0:00:38]} Nxe5 {[%emt 0:01:08]} 15. Bxe5 {[%emt 0:00:08]} Qa7 {[%emt 0:00:15]} 16. Ne4 {[%emt 0:01:31]} Nxe4 {[%emt 0:04:41]} 17. Qxe4 {[%emt 0:00:08]} Bc5 {[%emt 0:06:31]} 18. Qg4 {[%emt 0:02:54]} f6 {[%emt 0:06:09]} 19. Bxe6+ {[%emt 0:01:14]} Bxe6 {[%emt 0:01:23]} 20. Qxe6+ {[%emt 0:00:10]} Kh8 {[%emt 0:00:05]} 21. Rd7 {[%emt 0:30:55]} Rae8 {[%emt 0:13:01]} 22. Qg4 {[%emt 0:01:30]} Rg8 {[%emt 0:04:17]} 23. Bxf6 {[%emt 0:14:00]} gxf6 {[%emt 0:13:54]} 24. Qh4 {[%emt 0:02:52]} Be7 {[%emt 0:05:07]} 25. Rcc7 {[%emt 0:00:31]} Rg7 {[%emt 0:00:46]} 26. Rxe7 {[%emt 0:04:31]} Rexe7 {[%emt 0:07:27]} 27. Rxe7 {[%emt 0:07:08]} Rxe7 {[%emt 0:00:40]} 28. Qxf6+ {[%emt 0:00:09]} Rg7 {[%emt 0:00:16]} 1/2-1/2

[Event "Amsterdam Chess Open 2024"]
[Site "Amsterdam"]
[Date "2024.11.03"]
[Round "5.28"]
[White "Charleston Chauvet"]
[Black "Boustred, Noel J"]
[Result "1-0"]
[ECO "E67"]
[WhiteElo "1200"]
[BlackElo "1614"]
[Annotator "NA RC"]
[PlyCount "52"]
[EventDate "2024.10.31"]
[EventType "swiss"]
[EventCountry "NED"]
[SourceTitle "playchess.com"]
[Source "ChessBase"]
[SourceQuality "1"]
[TimeControl "5400+30"]

1. Nf3 {[%emt 0:00:02]} Nf6 {[%emt 0:00:14]} 2. g3 {[%emt 0:00:00]} g6 {[%emt 0:00:09]} 3. Bg2 {[%emt 0:00:01]} Bg7 {[%emt 0:00:11]} 4. O-O {[%emt 0:00:02]} d6 {[%emt 0:01:41]} 5. d4 {[%emt 0:00:30]} Nbd7 {[%emt 0:00:30]} 6. c4 {[%emt 0:02:34]} e5 {[%emt 0:00:21]} 7. dxe5 {[%emt 0:02:31]} dxe5 {[%emt 0:02:06]} 8. Nc3 {[%emt 0:00:01]} O-O {[%emt 0:00:40]} 9. Qc2 {[%emt 0:03:24]} c6 {[%emt 0:01:16]} 10. Rd1 {[%emt 0:03:05]} Qc7 {[%emt 0:00:24]} 11. Rb1 {[%emt 0:01:20]} Nc5 {[%emt 0:00:48]} 12. b4 {[%emt 0:00:56]} Bf5 {[%emt 0:00:11]} 13. e4 {[%emt 0:07:34]} Nfxe4 {[%emt 0:09:59]} 14. Nh4 {[%emt 0:05:42]} Nxc3 {[%emt 0:01:00]} 15. Nxf5 {[%emt 0:00:14]} Nxd1 {[%emt 0:01:52]} 16. Nxg7 {[%emt 0:01:20]} Nxf2 {[%emt 0:20:05]} 17. Kxf2 {[%emt 0:06:09]} Kxg7 {[%emt 0:00:13]} 18. bxc5 {[%emt 0:00:20]} Qe7 {[%emt 0:00:26]} 19. Rb3 {[%emt 0:15:08]} Rad8 {[%emt 0:06:22]} 20. h4 {[%emt 0:08:22]} f5 {[%emt 0:03:26]} 21. Bg5 {[%emt 0:07:21]} Qxc5+ {[%emt 0:00:10]} 22. Be3 {[%emt 0:00:12]} Qe7 {[%emt 0:02:24]} 23. Bg5 {[%emt 0:01:37]} Qc5+ {[%emt 0:01:54]} 24. Be3 {[%emt 0:00:02]} Qd6 {[%emt 0:04:00]} 25. Rxb7+ {[%emt 0:00:26]} Kg8 {[%emt 0:00:01]} 26. c5 {[%emt 0:12:45]} Qf6 {[%emt 0:02:37]} 1-0